Cogmind - Beta 13 *** ADVENTURER MODE // 2024.08.01 @ 16:14:53 Player: Jefffff Result: Destroyed by PT-CJB(R) with Subdweller Machine Gun Performance ------------- Evolutions (0) 0 Regions Visited (3) 600 Robots Destroyed (32) 160 Value Destroyed (607) 607 Prototype IDs (10) 200 Alien Tech Used (0) 0 Bonus (148) 148 TOTAL SCORE: 1715 Bonus ------- Follower Combat Kills 148 Cogmind --------- Core Integrity 0/250 Matter 285/300 Energy 100/100 System Corruption 0% Temperature Cool (0) Movement Rolling (110) Ox2 Location -10/Subcaves Parts ------- > --- POWER (1) -------- (None) > --- PROPULSION (2) --- Wheel Wheel > --- UTILITY (2) ------ High-capacity Storage Unit Signal Interpreter > --- WEAPON (2) ------- Battle Cannon Maul > --- INVENTORY (20) --- Ion Engine Ion Engine Spiked Treads Spiked Treads Compact Wheel Structural Scanner Visual Processing Unit Visual Processing Unit Sensor Array Terrain Scan Processor Terrain Scan Processor Targeting Computer Makeshift Light Armor Plating Makeshift Thermal Plating Rainbow Chip Light Assault Rifle Light Assault Rifle Mini Grenade Launcher Maul Peak State ------------ > --- POWER ------------ Ion Engine > --- PROPULSION ------- Spiked Treads Aluminum Leg > --- UTILITY ---------- High-capacity Storage Unit Signal Interpreter > --- WEAPON ----------- Battle Cannon Maul > --- INVENTORY -------- Ion Engine Ion Engine Light Ion Engine Wheel Wheel Wheel Compact Wheel Structural Scanner Visual Processing Unit Visual Processing Unit Sensor Array Terrain Scan Processor Terrain Scan Processor Targeting Computer Rainbow Chip Light Assault Rifle Light Assault Rifle Light Assault Rifle Mini Grenade Launcher Maul [Rating: 13] Favorites ----------- Power Ion Engine Engine Ion Engine Propulsion Aluminum Leg Treads Spiked Treads Leg Aluminum Leg Wheel Wheel Utility High-capacity Storage Unit Device Structural Scanner Storage High-capacity Storage Unit Processor Signal Interpreter Weapon Maul Energy Gun Small Laser Ballistic Gun Light Assault Rifle Ballistic Cannon Battle Cannon Launcher Mini Grenade Launcher Impact Weapon Maul Build | -11 -10 -10 -10 ------- Run | Yrd Mat Min Sub Slots Evolved . | . . . . Power . | . . . . Propulsion . | . . . . Utility . | . . . . Weapon . | . . . . Parts Attached 21 | . 12 3 6 Power 3 | . 2 . 1 Engine 3 | . 2 . 1 Core . | . . . . Reactor . | . . . . Propulsion 7 | . 2 1 4 Treads 1 | . . . 1 Leg 3 | . 2 1 . Wheel 3 | . . . 3 Hover . | . . . . Flight . | . . . . Utility 3 | . 2 1 . Device 1 | . 1 . . Storage 1 | . 1 . . Processor 1 | . . 1 . Hackware . | . . . . Protection . | . . . . Artifact . | . . . . Weapon 8 | . 6 1 1 Energy Gun 1 | . 1 . . Energy Cannon . | . . . . Ballistic Gun 4 | . 4 . . Ballistic Cannon 1 | . . . 1 Launcher 1 | . . 1 . Special Weapon . | . . . . Impact Weapon 1 | . 1 . . Slashing Weapon . | . . . . Piercing Weapon . | . . . . Special Melee Weapon . | . . . . Unidentified Prototypes . | . . . . Parts Lost 5 | . . . 5 Power 2 | . . . 2 Propulsion 2 | . . . 2 Utility . | . . . . Weapon 1 | . . . 1 Highest Loss Streak 2 | . . . 2 To Critical Strikes . | . . . . Average Slot Usage (%) 96 | . 97 100 90 Engine 13 | . 14 14 13 Leg 25 | . 28 28 20 Wheel 1 | . . . 4 Device 7 | . 12 11 . Storage 14 | . 14 14 14 Processor 6 | . . 2 14 Energy Gun 2 | . 13 . . Ballistic Gun 3 | . 14 1 . Ballistic Cannon 3 | . . . 8 Launcher 5 | . . 12 . Impact Weapon 11 | . . 14 14 Naked Turns . | . . . . Heaviest Build 51 | 12 51 51 51 Greatest Support 20 | 20 20 20 20 Greatest Overweight (x) 5 | . 2 2 5 Average Overweight (x) 1 | . 1 2 2 Largest Inventory Capacity 20 | . 20 20 20 Average Capacity 19 | . 17 20 20 Most Carried 20 | . 20 20 20 Average Carried 18 | . 13 20 19 Final Capacity 20 | 8 20 20 20 Final Carried 20 | 6 20 20 19 Class Distribution -------------------- 90% | Mutant 9% | Scavenger-Mutant Dominant Class ---------------- Mutant | -10/Materials Mutant | -10/Mines Mutant | -10/Subcaves Resources | -11 -10 -10 -10 ----------- Run | Yrd Mat Min Sub Matter Collected 719 | 187 196 126 210 Remotely . | . . . . Salvage Created 790 | . 484 157 149 Parts 58 | . 39 11 8 Haulers Intercepted 1 | . 1 . . Recyclers Shooed 1 | . 1 . . Parts Field Recycled . | . . . . Retrieved Matter . | . . . . Parts Self-Destructed 14 | . . . 14 Prevented . | . . . . Kills | -11 -10 -10 -10 ------- Run | Yrd Mat Min Sub Combat Hostiles Destroyed 22 | . 10 7 5 Melee 1 | . . . 1 Guns 11 | . 10 1 . Cannons 3 | . . . 3 AOE 5 | . . 5 . Classes Destroyed 9 | . 7 . 2 Worker 5 | . 3 2 . Builder 1 | . 1 . . Hauler 1 | . 1 . . Recycler 1 | . 1 . . Watcher 2 | . 2 . . Swarmer 12 | . 6 5 1 Grunt 6 | . 4 2 . Cobbler 1 | . . . 1 Subdweller 4 | . . . 4 Best Kill Streak 5 | . 5 3 1 Combat Bots Only 3 | . 3 3 1 Max Kills in Single Turn 3 | . 2 3 1 Gunslinging 1 | . 1 . . Exploded 3 | . . 3 . Melee 1 | . . . 1 Uniques/NPCs Destroyed . | . . . . Combat | -11 -10 -10 -10 -------- Run | Yrd Mat Min Sub Hostile Shots Fired 151 | . 62 32 57 Missed 41 | . 20 6 15 Damage Taken 1286 | . 329 240 717 Core 259 | . 71 23 165 Absorbed by Shields . | . . . . Ignored by Resistances 374 | . 106 76 192 Core Remaining (%) 100 | 100 . . . Volleys Fired 91 | . 41 18 32 Largest 2 | . 2 1 1 Hottest 60 | . 60 30 39 Shots Fired 125 | . 75 18 32 Gun 87 | . 75 12 . Cannon 32 | . . . 32 Launcher 6 | . . 6 . Special . | . . . . Kinetic 85 | . 41 12 32 Thermal 34 | . 34 . . Explosive 6 | . . 6 . Electromagnetic . | . . . . Robot Hit Streak 27 | . 16 27 16 Robot Miss Streak 3 | . 2 3 1 Penetration Max . | . . . . Secondary Targets 2 | . 2 . . Max Gunslinging Chain 1 | . 1 . . Shots Hit Robots 105 | . 54 15 36 Core Hits 42 | . 28 8 6 Critical Kills 1 | . . . 1 Critical Parts Destroyed 1 | . . 1 . Critical Strikes 2 | . . 1 1 Smash 2 | . . 1 1 Melee Attacks 22 | . . 4 18 Impact 22 | . . 4 18 Slashing . | . . . . Piercing . | . . . . Sneak Attacks 3 | . . 2 1 Combat Hostiles . | . . . . Follow-up Attacks . | . . . . Damage Inflicted 2106 | . 575 654 877 Guns 708 | . 575 133 . Cannons 507 | . . . 507 Explosions 277 | . . 277 . Melee 614 | . . 244 370 Ramming . | . . . . Kinetic 915 | . 275 133 507 Thermal 300 | . 300 . . Explosive 277 | . . 277 . Electromagnetic . | . . . . Impact 614 | . . 244 370 Slashing . | . . . . Piercing . | . . . . Highest Corruption . | . . . . Average Corruption . | . . . . Corruption Purged . | . . . . Corruption Blocked . | . . . . Overload Shots . | . . . . Overflow Damage 212 | . . 145 67 Projectiles . | . . . . Explosions 6 | . . 6 . Melee 206 | . . 139 67 Knockbacks 11 | . . 1 10 Impact 5 | . . 1 4 Kinetic 5 | . . . 5 Secondary 1 | . . . 1 Self-Inflicted Damage 4 | . . 4 . Shots 1 | . . 1 . Rammed . | . . . . Targets Rammed . | . . . . Kicked . | . . . . Crushed . | . . . . Highest Temperature 36 | . 36 17 . Average Temperature 17 | . 17 9 . Received Heat Transfer 348 | . 96 180 72 Siege Activations . | . . . . Robots Corrupted . | . . . . Combat Hostiles . | . . . . Parts Fried 7 | . . 4 3 Impact Corruptions 8 | . . 6 2 Robots Melted . | . . . . Combat Hostiles . | . . . . Parts Melted . | . . . . Heat Transferred 675 | . 675 . . Parts Sabotaged . | . . . . Parts Stolen . | . . . . Parts Stripped . | . . . . Power Chain Reactions . | . . . . Alert | -11 -10 -10 -10 ------- Run | Yrd Mat Min Sub Peak Influence 212 | . 212 185 . Initial 6 | . . 6 . Average 25 | . 51 13 . Maximum Alert Level 1 | . 1 . . Low Security (%) 99 | . 99 100 . Level 1 . | . . . . Level 2 . | . . . . Level 3 . | . . . . Level 4 . | . . . . Level 5 . | . . . . High Security . | . . . . Max Security . | . . . . Squads Dispatched 1 | . 1 . . Investigation 1 | . 1 . . Extermination . | . . . . Reinforcement . | . . . . Assault . | . . . . Garrison . | . . . . Intercept . | . . . . Searches Triggered . | . . . . Construction Impeded . | . . . . Haulers Reinforced . | . . . . Active Scanning Responses . | . . . . Cargo Convoy Interrupts . | . . . . Stealth | -11 -10 -10 -10 --------- Run | Yrd Mat Min Sub Distress Signals . | . . . . Communications Jammed . | . . . . Distress Signals . | . . . . Times Spotted 37 | . 13 11 13 Peak Tracking Total 3 | . 3 3 2 Tactical Retreats 1 | . . 1 . Traps | -11 -10 -10 -10 ------- Run | Yrd Mat Min Sub Traps Triggered 3 | . 1 . 2 Indirectly . | . . . . Trap Hack Attempts . | . . . . Triggered . | . . . . Disarmed . | . . . . Reprogrammed 2 | . 2 . . Reused . | . . . . Traps Extracted . | . . . . Installed . | . . . . Triggered . | . . . . Objects Rigged 2 | . 2 . . Machines | -11 -10 -10 -10 ---------- Run | Yrd Mat Min Sub Machines Disabled 7 | . . 6 1 Max in Single Turn 6 | . . 6 1 Machines Repaired . | . . . . Machines Dismantled . | . . . . Machines Sabotaged . | . . . . Overloaded Fab Kills . | . . . . Hacking | -11 -10 -10 -10 --------- Run | Yrd Mat Min Sub Machines Accessed 8 | . 6 1 1 Terminals 5 | . 5 . . Fabricators . | . . . . Repair Stations . | . . . . Recycling Units 1 | . 1 . . Scanalyzers . | . . . . Garrison Access . | . . . . Total Hacks 26 | . 24 1 1 Successful 21 | . 19 1 1 Failed 5 | . 5 . . Catastrophic . | . . . . Database Lockouts . | . . . . Manual 22 | . 22 . . Terminals 22 | . 22 . . Fabricators . | . . . . Repair Stations . | . . . . Recycling Units 2 | . 2 . . Scanalyzers . | . . . . Garrison Access . | . . . . Terminal Hacks 6 | . 4 1 1 Open Door 1 | . . 1 . Branch Access Points 1 | . 1 . . Terminal Index 1 | . 1 . . Scanalyzer Index 1 | . 1 . . Reprogram Traps 1 | . 1 . . Derelict Proto ID Bank 1 | . . . 1 Fabricator Hacks . | . . . . Repair Station Hacks . | . . . . Recycling Unit Hacks 1 | . 1 . . Retrieve Components 1 | . 1 . . Scanalyzer . | . . . . Garrison Access Hacks . | . . . . Unauthorized Hacks 14 | . 14 . . Terminals 13 | . 13 . . Track 3 | . 3 . . Assimilate 1 | . 1 . . Botnet 5 | . 5 . . Detonate 1 | . 1 . . Operators 3 | . 3 . . Fabricators . | . . . . Repair Stations . | . . . . Recycling Units 1 | . 1 . . Tunnel 1 | . 1 . . Scanalyzers . | . . . . Garrison Access . | . . . . Data Cores Recovered . | . . . . Used . | . . . . Hacking Detections 5 | . 5 . . Full Trace Events . | . . . . Feedback Events . | . . . . Feedback Blocked . | . . . . Robot Schematics Acquired . | . . . . Robots Built . | . . . . Authchips . | . . . . Time . | . . . . Total Robot Build Rating . | . . . . Part Schematics Acquired . | . . . . Parts Built . | . . . . Authchips . | . . . . Time . | . . . . Total Part Build Rating . | . . . . Parts Repaired . | . . . . Time . | . . . . Parts Recycled . | . . . . Recycled Matter . | . . . . Retrieved Matter . | . . . . Retrieved Components 9 | . 9 . . Parts Scanalyzed . | . . . . Part Schematics Acquired . | . . . . Parts Damaged . | . . . . Bothacking | -11 -10 -10 -10 ------------ Run | Yrd Mat Min Sub Used RIF Installer . | . . . . Robots Hacked . | . . . . Non-combat . | . . . . Combat . | . . . . Robot Hacks Applied . | . . . . Relay Couplers Released . | . . . . Fabnet Peak Effective % . | . . . . Robots Rewired . | . . . . Allies Hacked . | . . . . Hacks Repelled . | . . . . Allies | -11 -10 -10 -10 -------- Run | Yrd Mat Min Sub Total Allies 3 | . . 3 . Largest Group 3 | . . 3 3 Highest-Rated Group 77 | . . 77 77 Highest-Rated Ally 31 | . . 31 31 Total Orders . | . . . . Ally Attacks 62 | . . 7 55 Total Damage 840 | . . 128 712 Kills 8 | . . 3 5 Allies Corrupted . | . . . . Allies Melted 1 | . . . 1 Intel | -11 -10 -10 -10 ------- Run | Yrd Mat Min Sub Robot Analysis Total . | . . . . Derelict Logs Recovered 1 | . . . 1 Drone Launches . | . . . . Drone Recoveries . | . . . . Exploration | -11 -10 -10 -10 ------------- Run | Yrd Mat Min Sub Turns Passed 7609 | . 1569 3170 2870 Spaces Moved 2913 | 1 680 1077 1155 Core . | . . . . Treads . | . . . . Legs 2545 | 1 680 1077 787 Wheels 368 | . . . 368 Hover . | . . . . Flight . | . . . . Fastest Speed 110 | 120 120 260 110 Average Speed 237 | 120 205 260 235 Slowest Speed 470 | 120 260 260 470 Overloaded Moves . | . . . . Propulsion Burnouts . | . . . . Robots Hopped . | . . . . Cave-ins Triggered . | . . . . Exploration Rate (%) 62 | 2 70 101 76 Regions Visited 3 Branch Regions 2 Pre-discovered Areas 2 | . 1 1 . Known Exits Taken 2 | . 1 1 . Unknown Exits Taken 1 | 1 . . . Scrap Searched 17 | . . 3 14 Spaces Dug 6 | . . . 6 Terrain Destroyed 71 | . . 65 6 Melee 6 | . . . 6 Projectile . | . . . . AOE 65 | . . 65 . Terrain Rammed . | . . . . Walls Destroyed . | . . . . Machines Disabled . | . . . . Actions | -11 -10 -10 -10 --------- Run | Yrd Mat Min Sub Total 3453 | . 793 1426 1234 Wait 353 | . 26 318 9 Move 2910 | . 679 1076 1155 Hop . | . . . . Pick Up 29 | . 19 3 7 Fast Attach 5 | . 2 . 3 Attach 1 | . . . 1 Detach . | . . . . Swap 15 | . 10 3 2 Drop 27 | . 16 4 7 Fire 91 | . 41 18 32 Melee 22 | . . 4 18 Ram . | . . . . Kick . | . . . . Crush . | . . . . Escape Stasis . | . . . . Rewire . | . . . . Trap . | . . . . Miscellaneous . | . . . . Route ------- -11/Scrapyard -10/Materials (discovered 4 exits: *Mat x2 / *Min x2) -10/Mines (discovered 3 exits: *Mat x2 / *Sub) -10/Subcaves (discovered 1 exit: *Mat) History --------- Turn | Location | Event 1 | -11/Scrapyard | Discovered new exit (range 0) 1 | -11/Scrapyard | Entered Materials 6 | -10/Materials | Discovered new exit (range 16) 249 | -10/Materials | Discovered new exit (range 15) 293 | -10/Materials | Identified exit to Mines 318 | -10/Materials | Build established: Mutant 918 | -10/Materials | Discovered new exit (range 16) 1570 | -10/Materials | Entered Mines 1796 | -10/Mines | Learned location of Storage (-7) 1822 | -10/Mines | Found the Drone Emporium 2413 | -10/Mines | Discovered new exit (range 11) 3427 | -10/Mines | Escorted by a lone wolf Derelict 4136 | -10/Mines | Discovered new exit (range 3) 4252 | -10/Mines | Identified exit to Materials 4523 | -10/Mines | Build established: Scavenger-Mutant 4716 | -10/Mines | Discovered new exit (range 5) 4726 | -10/Mines | Identified exit to Subcaves 4740 | -10/Mines | Entered Subcaves 4740 | -10/Subcaves | Accompanied by 3 allies 4745 | -10/Subcaves | Led the pair of lost Derelicts to an unsafe place 4851 | -10/Subcaves | A swath of the cavern ceiling suddenly collapsed 5214 | -10/Subcaves | Build established: Mutant 6379 | -10/Subcaves | Visited 4L-MR0's lab 6409 | -10/Subcaves | Found Rainbow Chip 6513 | -10/Subcaves | Core integrity fell below 50% 7250 | -10/Subcaves | Shifting Twisted Machinery released Mak. Flight Unit 7265 | -10/Subcaves | Shifting Twisted Machinery released Sub. Monowheel 7280 | -10/Subcaves | Shifting Twisted Machinery released Sub. Beam Cannon 7297 | -10/Subcaves | Shifting Twisted Machinery released Battle Rifle 7352 | -10/Subcaves | A swath of the cavern ceiling suddenly collapsed 7543 | -10/Subcaves | Core integrity fell below 20% 7545 | -10/Subcaves | Discovered new exit (range 10) 7561 | -10/Subcaves | Identified exit to Materials 7610 | -10/Subcaves | Destroyed by PT-CJB(R) with Subdweller Machine Gun Last Messages --------------- 07551_ B3-SED(R) destroyed. 07554_ Acquired 40 matter. 07561_ EXIT=IDENTIFIED: MATERIALS 07585_ Searching scrap... 07585_ Found Mak. Sword. 07585_ Found Hvy. Battle Rifle. 07585_ Found 23 Matter. 07591_ Searching scrap... 07591_ Found Sub. Machine Gun. 07591_ Found 25 Matter. 07594_ Triggered Shrapnel Trap. 07594_ An expanding cloud of shrapnel blasts out in all directions. 07594_ Wheel destroyed. 07600_ Triggered Piercing Trap. 07600_ Spikes shoot up from the floor. 07600_ Critical hit (Impale). 07600_ Ion Engine destroyed. 07600_ Critical hit (Impale). 07605_ O1-UBU(R) knocked back. Map ----- +----------------------------------------------------+ | ?????????????????????????????????????????????????? | | ?????????????????????????????????????????????????? | | ?????????????????????????????????????????????????? | | ?????????????????????????????????????????????????? | | ?????????????????????????????????????????????????? | | ?????????????????????????????????????????????????? | | ?????????????????????????????????????????????????? | | ?????????????????????????????????????????????????? | | ?????????????????????????????????????????????????? | | ?????????????????????????????????????????????????? | | ?????????????????????????????????????????????????? | | ?????????????????????????????????????????????????? | | ?????????????????????????????????????????????????? | | ?????????????????????????????????????????????????? | | ?????????????????????????????????????????????????? | | ?????????????????????????????????????????????????? | | ?????????????????????????????????????????????????? | | ?????????????????????????????????????????????????? | | ?????????????????????????????????????????????????? | | ?????????????????????????????????????????????????? | | ?????????????????????????????????????????????????? | | ?????????????????????????????????????????????????? | | ##????????????????????????????##?????????????????? | | "#???????????????????#####??# ##????????????????? | | "#??????????????????## ## "#????????????????? | | "########??????????## ^@ R% R"#????????????????? | | ##"" #???????##?# ### "#????????????????? | | < ##???### #?# ##??????"""??????????????? | | # # #??## ##?# #????????????????????????? | | #### ##?## ## ###; "##???????????????????????? | | # ### #### ####/##; " #???????????????????????? | | # # # ##??##%#; " #???????????????????????? | | #????##[ [[" #???????????????????????? | | #### ## ##?????## "%###???????????????????????? | | ???###?#####???????#####?????????????????????????? | | ?????????????????????????????????????????????????? | | ?????????????????????????????????????????????????? | | ?????????????????????????????????????????????????? | | ?????????????????????????????????????????????????? | | ?????????????????????????????????????????????????? | | ?????????????????????????????????????????????????? | | ?????????????????????????????????????????????????? | | ?????????????????????????????????????????????????? | | ?????????????????????????????????????????????????? | | ?????????????????????????????????????????????????? | | ?????????????????????????????????????????????????? | | ?????????????????????????????????????????????????? | | ?????????????????????????????????????????????????? | | ?????????????????????????????????????????????????? | | ?????????????????????????????????????????????????? | +----------------------------------------------------+ Best States ------------- Heat Dissipation 25 Energy Generation 10 Energy Capacity 250 Matter Stores 300 Matter Capacity 300 Sight Range 16 Terrain Scan Density 10 Resistance: KI 20 Resistance: TH 20 Resistance: EX 20 Resistance: EM 20 Resistance: I 20 Resistance: S 20 Resistance: P 20 Evasion (%) 55 Offensive Hacking 10 Item Schematics ----------------- None Robot Schematics ------------------ None Fabricated ------------ Nothing Alien Tech Used ----------------- None Achievements -------------- None Challenges ------------ None Game ------ Seed SubatomicCannonNetwork Manual? 0 Play Time 00:22:51 Cumulative 111.7 hours Start 2024.08.01 @ 15:52:11 End 2024.08.01 @ 16:14:53 Sessions 1 Manual Loads 0 Difficulty Adventurer Special Mode None Game No. 156 Rogue 0 Adventurer 156 Explorer 0 Win Type - Total 0 Types 0/0/0/0/0/0/0/0/0 Lore% 47 Gallery% 52 Achievement% 37 Wizard Run 0 Options --------- Layout 2 ASCII 0 Keyboard 0 Movement Mouse Keybinds 0 Fullscreen 2 Font 48/Terminus Map View 50x44 Zoom Use 0% Tactical HUD 1 Map Filters NONE Filters NONE Steam 1 RUN: a09d3eb4-dd91-4511-82d3-0ba69fe900d6